{"text_format":"1","workbook":"xlsx","n_sheets":5,"sheets":["Introduction","Carte des données par RLS","Listes (Ne pas modifier)","Données (Ne pas modifier)","Paramètres (Ne pas modifier)"],"not_rendered":{"charts":0,"images":18,"macros":1,"external_links":0,"defined_names":4,"comments":0,"pivot_tables":0},"unopened":[],"bounds":{"document_bytes":16777216,"sheet_cells":100000,"rows_first":2000,"rows_last":500,"rows_between":2000,"halvings":0,"cell_chars":16384,"cell_head_chars":4096},"cells_cut":0,"cells_raw":0,"read":"whole","date_system":"1900"}

{"sheet":"Introduction","index":0,"n_rows":0,"n_cols":0,"rows_kept":0,"cut":false,"hidden":false,"merged":[]}

{"sheet":"Carte des données par RLS","index":1,"n_rows":38,"n_cols":13,"rows_kept":38,"cut":false,"hidden":false,"merged":[[0,0,0,9],[36,1,36,9],[35,1,35,9],[37,1,37,9]]}
[{"$f":"'Données (Ne pas modifier)'!R1&\" \"&\"(%)\"","v":"Proportion de la population parlant anglais le plus souvent à la maison (%)"}]
[]
[null,null,null,null,null,null,null,null,null,null,null,null,"Choisissez un indicateur :"]
[]
[null,null,null,null,null,null,null,null,"Québec :",{"$f":"'Données (Ne pas modifier)'!Q2","v":10.199999999999999}]
[null,null,null,null,null,null,null,null,"Région des Laurentides :",{"$f":"'Données (Ne pas modifier)'!Q3","v":5.0999999999999996}]
[]
[]
[]
[]
[]
[]
[null,null,null,null,null,null,null,null,null,"Nombres"]
[null,null,null,null,null,null,"Région des Laurentides",null,null,{"$f":"'Données (Ne pas modifier)'!Q17","v":29060}]
[null,null,null,null,null,null,"RLS Antoine-Labelle",null,null,{"$f":"'Données (Ne pas modifier)'!Q18","v":305}]
[null,null,null,null,null,null,"RLS Laurentides",null,null,{"$f":"'Données (Ne pas modifier)'!Q19","v":2410}]
[null,null,null,null,null,null,"RLS Pays-d'en-Haut",null,null,{"$f":"'Données (Ne pas modifier)'!Q20","v":3745}]
[null,null,null,null,null,null,"RLS Argenteuil",null,null,{"$f":"'Données (Ne pas modifier)'!Q21","v":5255}]
[null,null,null,null,null,null,"RLS Deux-Montagnes - Mirabel-Sud",null,null,{"$f":"'Données (Ne pas modifier)'!Q22","v":6325}]
[null,null,null,null,null,null,"RLS Rivière-du-Nord - Mirabel-Nord",null,null,{"$f":"'Données (Ne pas modifier)'!Q23","v":2645}]
[null,null,null,null,null,null,"RLS Thérèse-De Blainville",null,null,{"$f":"'Données (Ne pas modifier)'!Q24","v":8365}]
[]
[]
[]
[]
[]
[]
[]
[]
[]
[]
[]
[]
[]
[]
["Définition :",{"$f":"'Données (Ne pas modifier)'!Q12","v":"Proportion de la population parlant le plus souvent anglais à la maison, par rapport à la population totale, dans les ménages privés, ayant déclaré une seule langue parlée le plus souvent à la maison."}]
["Source :",{"$f":"'Données (Ne pas modifier)'!Q11","v":"Statistique Canada, Recensement 2016"}]
["Référence : ","Équipe de surveillance, recherche et évaluation (SRÉ) de la Direction de santé publique, CISSS des Laurentides, 2019-02-01"]

{"sheet":"Listes (Ne pas modifier)","index":2,"n_rows":13,"n_cols":2,"rows_kept":13,"cut":false,"hidden":false,"merged":[]}
["Colonne1","Indicateurs"]
[1,"Proportion de la population âgée d'un an ou plus ayant changé de localité un an auparavant"]
[2,"Proportion de familles monoparentales"]
[3,"Proportion de la population vivant seule"]
[4,"Proportion de la population vivant sous la mesure du panier de consommation"]
[5,"Proportion des ménages consacrant 30 % ou plus de leur revenu aux dépenses liées au logement "]
[6,"Proportion de la population de 25 à 64 ans sans diplôme d'études secondaires"]
[7,"Taux d'activité"]
[8,"Taux d'emploi"]
[9,"Taux de chômage"]
[10,"Proportion de la population parlant anglais le plus souvent à la maison"]
[11,"Proportion de la population immigrante"]
[12,"Proportion de logements nécessitant des réparations majeures"]

{"sheet":"Données (Ne pas modifier)","index":3,"n_rows":24,"n_cols":18,"rows_kept":24,"cut":false,"hidden":false,"merged":[]}
["Territoire","Proportion de la population âgée d'un an ou plus ayant changé de localité un an auparavant","Proportion de familles monoparentales","Proportion de la population vivant seule","Proportion de la population vivant sous la mesure du panier de consommation","Proportion des ménages consacrant 30 % ou plus de leur revenu aux dépenses liées au logement ","Proportion de la population de 25 à 64 ans sans diplôme d'études secondaires","Taux d'activité","Taux d'emploi","Taux de chômage","Proportion de la population parlant anglais le plus souvent à la maison","Proportion de la population immigrante","Proportion de logements nécessitant des réparations majeures",null,null,null,"Indicateur sélectionné",{"$f":"INDEX(B1:P1,Choix_de_l_indicateur)","v":"Proportion de la population parlant anglais le plus souvent à la maison"}]
["Québec",11.608609554313501,24.584273229122978,17.7,10.7,20.974070917442216,13.280946216096288,64.099999999999994,59.5,7.2,10.199999999999999,13.700481454280675,6.4288464914516119,null,null,null,{"$f":"INDEX(B2:P2,Choix_de_l_indicateur)","v":10.199999999999999}]
["Laurentides",11.140641528898525,25.7,15.3,9.1,20.401621000423393,14.837848449155869,65.3,60.9,6.7,5.0999999999999996,5.313616737762934,5.5745142123012688,null,null,null,5.0999999999999996]
["Antoine-Labelle",10.522410210745029,29,18.899999999999999,13.1,18.961278426551935,24.416711882799781,51.3,45.5,11.2,0.9,1.2967875036840553,8.3156297420333836,null,null,null,{"$f":"INDEX(B4:P4,Choix_de_l_indicateur)","v":0.9}]
["Laurentides",12.172642463751826,29.9,20.8,11.8,23.732297852900867,17.312398042414358,58.7,52.9,9.9,5.5,4.3978122558321235,7.3265073947667805,null,null,null,5.5]
["Pays-d'en-Haut",11.448140900195694,27.5,20.8,11,24.927466150870405,10.526315789473683,57.2,53.2,6.9,9.3000000000000007,6.8195607329207624,5.8695652173913047,null,null,null,9.3000000000000007]
["Argenteuil",10.818527918781726,32.4,18.399999999999999,14.4,22.465005121201777,23.77500724847782,56.7,52.3,7.8,16.899999999999999,3.3732660781841108,8.8603314169766669,null,null,null,16.899999999999999]
["Deux-Montagnes - Mirabel-Sud",9.7352576589339481,22.9,12.9,7.2,17.31983453080775,13.790664780763789,69.3,65,6.2,5.7,6.0867282194897818,5.2341895100366926,null,null,null,5.7]
["Rivière-du-Nord - Mirabel-Nord",12.838184382613155,26.5,15.8,10,22.587299248563429,16.061618621509883,67.5,63.2,6.4,1.7,3.5890619065704517,4.6286092131364338,null,null,null,1.7]
["Thérèse-De Blainville",10.268018239674573,24,11.8,6.5,17.43822075782537,10.829850746268658,69.8,65.900000000000006,5.6,5.6,7.6548342048001041,4.616144161935325,null,null,null,5.6]
["Source","Statistique Canada, Recensement 2016","Statistique Canada, Recensement 2016","Statistique Canada, Recensement 2016","Statistique Canada, Recensement 2016","Statistique Canada, Recensement 2016","Statistique Canada, Recensement 2016","Statistique Canada, Recensement 2016","Statistique Canada, Recensement 2016","Statistique Canada, Recensement 2016","Statistique Canada, Recensement 2016","Statistique Canada, Recensement 2016","Statistique Canada, Recensement 2016","Statistique Canada, Recensement 2016",null,null,"Statistique Canada, Recensement 2016"]
["Définition","Proportion de la population âgée d'un an et plus, dans les ménages privés, qui habitait une autre ville un an auparavant.","Proportion de familles de recensement avec au moins un enfant de 17 ans ou moins composées d'un seul parent.","Proportion de la population de 15 ans ou plus, dans les ménages privés, vivant seule dans son logement.","Proportion des personnes, dans les ménages privés, ayant un faible revenu l'année précédant l'enquête, selon la mesure de faible revenu fondée sur le coût d'un panier de biens et de services correspondant à un niveau de vie de base.","Proportion des ménages privés qui consacrent 30 % ou plus de leur revenu annuel pour couvrir les coûts d’habitation.","Proportion de la population de 25 à 64 ans, dans les ménages privés, n'ayant aucun diplôme, certificat ou grade.","Proportion de la population de 15 ans ou plus, dans les ménages privés, considérée active sur le marché du travail pendant la semaine ayant précédé le jour du recensement.","Proportion de la population de 15 ans ou plus, dans les ménages privés, considérée occupée au cours de la semaine ayant précédé le jour du recensement.","Proportion de la population active de 15 ans ou plus, dans les ménages privés, considérée en chômage pendant la semaine ayant précédé le jour du recensement.","Proportion de la population parlant le plus souvent anglais à la maison, par rapport à la population totale, dans les ménages privés, ayant déclaré une seule langue parlée le plus souvent à la maison.","Proportion de la population, dans les ménages privés, ayant un statut d'immigrant reçu.","Proportion de logements privés occupés par des résidents habituels nécessitant des réparations majeures.",null,null,null,{"$f":"INDEX(B12:M12,Choix_de_l_indicateur)","v":"Proportion de la population parlant le plus souvent anglais à la maison, par rapport à la population totale, dans les ménages privés, ayant déclaré une seule langue parlée le plus souvent à la maison."}]
[]
[]
[]
["Territoire","Proportion de la population âgée d'un an ou plus ayant changé de localité un an auparavant","Proportion de familles monoparentales","Proportion de la population vivant seule","Proportion de la population vivant sous la mesure du panier de consommation","Proportion des ménages consacrant 30 % ou plus de leur revenu aux dépenses liées au logement ","Proportion de la population de 25 à 64 ans sans diplôme d'études secondaires","Taux d'activité","Taux d'emploi","Taux de chômage","Proportion de la population parlant anglais le plus souvent à la maison","Proportion de la population immigrante","Proportion de logements nécessitant des réparations majeures",null,null,null,"Indicateur sélectionné"]
["Laurentides",63715,17010,73325,52870,50595,47240,312945,291910,21035,29060,30705,13885,null,null,null,{"$f":"INDEX(B17:P17,Choix_de_l_indicateur)","v":29060}]
["Antoine-Labelle",3545,855,5600,4445,3085,4500,15175,13465,1705,305,440,1370,null,null,null,305]
["Laurentides",5415,1250,8045,5290,5195,4245,22720,20480,2245,2410,1970,1610,null,null,null,2410]
["Pays-d'en-Haut",4680,935,7570,4515,5155,2370,20825,19390,1430,3745,2810,1215,null,null,null,3745]
["Argenteuil",3410,1005,4985,4575,3290,4100,15375,14190,1195,5255,1070,1310,null,null,null,5255]
["Deux-Montagnes - Mirabel-Sud",10995,3260,11965,8275,7955,8775,64210,60230,3985,6325,6955,2425,null,null,null,6325]
["Rivière-du-Nord - Mirabel-Nord",20025,5120,20325,15770,15330,14180,86895,81350,5545,2645,5670,3150,null,null,null,2645]
["Thérèse-De Blainville",15650,4595,14840,10000,10585,9070,87745,82805,4940,8365,11785,2805,null,null,null,8365]

{"sheet":"Paramètres (Ne pas modifier)","index":4,"n_rows":2,"n_cols":2,"rows_kept":2,"cut":false,"hidden":false,"merged":[]}
[]
["Choix de l'indicateur",10]